fUSD/lending_fUSD_20240613
["ID","MTS","AMOUNT","RATE_DAILY","PERIOD"]
[329374470,1718291451405,-500.0,0.00024383,2]
[329374471,1718291451419,-500.0,0.00024383,2]
[329374472,1718291451436,-500.0,0.00024383,2]
[329374473,1718291451447,-1063.91,0.00024383,2]
[329374474,1718291451463,-500.0,0.00024383,2]
[329374475,1718291451484,-500.0,0.00024383,2]
[329374476,1718291451511,-500.0,0.00024383,2]
[329374477,1718291451532,-500.0,0.00024383,2]
[329374478,1718291451572,-500.0,0.00024383,2]
[329374479,1718291451594,-500.0,0.00024383,2]
[329374480,1718291451606,-710.66,0.00024383,2]
[329374481,1718291451618,-500.0,0.00024383,2]
[329374482,1718291451633,-500.0,0.00024383,2]
[329374483,1718291451652,-767.83,0.00024383,2]
[329374484,1718291451680,-500.0,0.00024383,2]
[329374485,1718291451728,-969.39,0.00024383,2]
[329374486,1718291451745,-500.0,0.00024383,2]
[329374487,1718291451765,-570.51,0.00024383,2]
[329374488,1718291451777,-500.0,0.00024383,2]
[329374489,1718291451807,-500.0,0.00024383,2]
[329374490,1718291451829,-624.29,0.00024383,2]
[329374491,1718291451854,-500.0,0.00024383,2]
[329374492,1718291451876,-434.96,0.00024383,2]
[329374493,1718291451887,-500.0,0.00024383,2]
[329374494,1718291451898,-500.0,0.00024383,2]
[329374495,1718291451926,-1223.79,0.00024383,2]
[329374496,1718291451938,-500.0,0.00024383,2]
[329374497,1718291451970,-1170.66,0.00024383,2]
[329374498,1718291451984,-500.0,0.00024383,2]
[329374499,1718291451995,-500.0,0.00024383,2]
[329374500,1718291452009,-500.0,0.00024383,2]
[329374501,1718291452024,-500.0,0.00024383,2]
[329374502,1718291452045,-500.0,0.00024383,2]
[329374503,1718291452058,-500.0,0.00024383,2]
[329374504,1718291452070,-320.15,0.00024384,2]
[329374505,1718291452083,-159.03,0.00024384,2]
[329374506,1718291452108,-326.6204,0.00024399,2]
[329374507,1718291452124,-518.49925461,0.00024657,2]
[329374508,1718291452142,-500.0,0.00024657,2]
[329374509,1718291452163,-500.0,0.00024657,2]
[329374510,1718291452186,-500.0,0.00024657,2]
[329374511,1718291452202,-500.0,0.00024657,2]
[329374512,1718291452242,-619.04,0.00024657,2]
[329374513,1718291452261,-500.0,0.00024657,2]
[329374514,1718291452272,-500.0,0.00024657,2]
[329374515,1718291452296,-427.42265764,0.00024657,2]
[329374516,1718291452320,-320.26838199,0.00024657,2]
[329374517,1718291452340,-188.210442,0.00024657,2]
[329374518,1718291452378,-500.0,0.00024657,2]
[329374519,1718291452391,-500.0,0.00024657,2]
[329374520,1718291452416,-41.48115129,0.00024657,2]
[329374521,1718291452448,-1134.31999994,0.00024657,2]
[329374522,1718291452464,-0.20884877,0.00024657,2]
[329374523,1718291452475,-500.0,0.00024657,2]
[329374524,1718291452488,-412.24115123,0.00024657,2]
[329374525,1718291452525,-87.75884877,0.00024657,2]
[329374526,1718291452536,-500.0,0.00024657,2]
[329374527,1718291452564,-190.88211737,0.00024657,2]
[329374528,1718291452597,-309.11788263,0.00024657,2]
[329374529,1718291452610,-799.67,0.00024657,2]
[329374530,1718291452653,-500.0,0.00024657,2]
[329374531,1718291452705,-500.0,0.00024657,2]
[329374532,1718291452721,-306.89285201,0.00024657,2]
[329374533,1718291452756,-522.28748998,0.00024657,2]
[329374534,1718291452771,-500.0,0.00024657,2]
[329374535,1718291452794,-227.38735692,0.00024657,2]
[329374536,1718291452816,-500.0,0.00024657,2]
[329374537,1718291452828,-500.0,0.00024657,2]
[329374538,1718291452843,-500.0,0.00024657,2]
[329374539,1718291452871,-358.66,0.00024657,2]
[329374540,1718291452933,-500.0,0.00024657,2]
[329374541,1718291452976,-500.0,0.00024657,2]
[329374542,1718291453062,-500.0,0.00024657,2]
[329374543,1718291453076,-500.0,0.00024657,2]
[329374544,1718291453097,-228.87576465,0.00024657,2]
[329374545,1718291453108,-500.0,0.00024657,2]
[329374546,1718291453124,-500.0,0.00024657,2]
[329374547,1718291453136,-527.29,0.00024657,2]
[329374548,1718291453157,-308.5948874,0.00024657,2]
[329374549,1718291453169,-500.0,0.00024657,2]
[329374550,1718291453182,-176.82951926,0.00024657,2]
[329374551,1718291453197,-275.74000296,0.00024657,2]
[329374552,1718291453208,-500.0,0.00024657,2]
[329374553,1718291453221,-591.97,0.00024657,2]
[329374554,1718291453239,-813.26,0.00024657,2]
[329374555,1718291453254,-696.09,0.00024657,2]
[329374556,1718291453273,-500.0,0.00024657,2]
[329374557,1718291453316,-500.0,0.00024657,2]
[329374558,1718291453328,-500.0,0.00024657,2]
[329374559,1718291453352,-500.0,0.00024657,2]
[329374562,1718291453367,-500.0,0.00024657,2]
[329374563,1718291453427,-500.0,0.00024657,2]
[329374564,1718291453476,-500.0,0.00024657,2]
[329374566,1718291453492,-500.0,0.00024657,2]
[329374567,1718291453504,-500.0,0.00024657,2]
[329374569,1718291453550,-126.77404096,0.00024657,2]
[329374572,1718291453572,-373.22595904,0.00024657,2]
[329374574,1718291453592,-175.65373546,0.00024657,2]
[329374576,1718291453606,-407.69,0.00024657,2]
[329374578,1718291453638,-550.32760543,0.00024657,2]
[329374580,1718291453663,-134.40522007,0.00024657,2]
[329374581,1718291453678,-365.59477993,0.00024657,2]
[329374583,1718291453712,-325.44425528,0.00024657,2]
[329374586,1718291453745,-453.46218221,0.00024657,2]
[329374588,1718291453776,-285.00356251,0.00024657,2]
[329374590,1718291453787,-37.84661756,0.00024657,2]
[329374593,1718291453869,-462.15338244,0.00024657,2]
[329374595,1718291453880,-500.0,0.00024657,2]
[329374597,1718291453892,-500.0,0.00024657,2]
[329374600,1718291453928,-291.70160154,0.00024657,2]
[329374602,1718291453944,-208.29839846,0.00024657,2]
[329374604,1718291453954,-500.0,0.00024657,2]
[329374606,1718291453968,-19.28150757,0.00024657,2]
[329374609,1718291454000,-469.34623416,0.00024657,2]
[329374610,1718291454022,-710.66,0.00024657,2]
[329374612,1718291454038,-185.50996584,0.00024657,2]
[329374614,1718291454065,-314.49003416,0.00024657,2]
[329374616,1718291454091,-48.08196784,0.00024657,2]
[329374619,1718291454112,-331.34846134,0.00024657,2]
[329374621,1718291454126,-18.06595204,0.00024657,2]
[329374622,1718291454142,-297.59077079,0.00024657,2]
[329374624,1718291454164,-452.17327717,0.00024657,2]
[329374626,1718291454179,-211.77310736,0.00024657,2]
[329374628,1718291454200,-969.39,0.00024657,2]
[329374630,1718291454237,-278.20956324,0.00024657,2]
[329374631,1718291454251,-570.51,0.00024657,2]
[329374634,1718291454275,-286.50109997,0.00024657,2]
[329374636,1718291454328,-500.0,0.00024657,2]
[329374638,1718291454351,-624.29,0.00024657,2]
[329374639,1718291454365,-500.0,0.00024657,2]
[329374641,1718291454382,-303.95628109,0.00024657,2]
[329374643,1718291454413,-500.0,0.00024657,2]
[329374645,1718291454446,-1223.79,0.00024657,2]
[329374647,1718291454466,-500.0,0.00024657,2]
[329374658,1718291454676,-1170.66,0.00024657,2]
[329374660,1718291454708,-581.27,0.00024657,2]
[329374662,1718291454730,-500.0,0.00024657,2]
[329374664,1718291454756,-7.96606993,0.00024657,2]
[329374670,1718291454837,-3039.91952756,0.00020949,2]
[329374671,1718291454864,-500.0,0.00024109,2]
[329374673,1718291454881,-500.0,0.00024109,2]
[329374674,1718291454900,-492.03393007,0.00024657,2]
[329374677,1718291454932,-500.0,0.00024657,2]
[329374678,1718291454961,-500.0,0.00024657,2]
[329374681,1718291454975,-1097.50610193,0.00024701,2]
[329374683,1718291454992,-570.44539467,0.00024799,2]
[329374685,1718291455012,-570.44539466,0.00024799,2]
[329374689,1718291455043,-570.44539466,0.00024799,2]
[329374690,1718291455068,-570.44539466,0.00024799,2]
[329374692,1718291455085,-570.44539466,0.00024799,2]
[329374694,1718291455105,-570.44539466,0.00024799,2]
[329374695,1718291455130,-570.44539466,0.00024799,2]
[329374698,1718291455146,-7500.0,0.00024831,2]
[329374700,1718291455166,-500.0,0.00024931,3]
[329374702,1718291455200,-500.0,0.00024931,3]
[329374704,1718291455222,-500.0,0.00024931,3]
[329374706,1718291455234,-500.0,0.00024931,3]
[329374709,1718291455271,-597.40071294,0.00024931,3]
[329374710,1718291455290,-500.0,0.00024931,3]
[329374713,1718291455302,-500.0,0.00024931,3]
[329374714,1718291455344,-1176.01,0.00024931,3]
[329374717,1718291455380,-500.0,0.00024931,3]
[329374718,1718291455399,-500.0,0.00024931,3]
[329374720,1718291455413,-500.0,0.00024931,3]
[329374722,1718291455434,-500.0,0.00024931,3]
[329374724,1718291455459,-799.67,0.00024931,3]
[329374726,1718291455474,-523.00667378,0.00024931,3]
[329374727,1718291455489,-579.73531915,0.00024931,3]
[329374729,1718291455507,-500.0,0.00024931,3]
[329374731,1718291455538,-641.97411589,0.00024931,3]
[329374733,1718291455571,-500.0,0.00024931,3]
[329374735,1718291455588,-500.0,0.00024931,3]
[329374737,1718291455608,-500.0,0.00024931,3]
[329374739,1718291455631,-500.0,0.00024931,3]
[329374741,1718291455642,-500.0,0.00024931,3]
[329374743,1718291455677,-376.58050184,0.00024931,3]
[329374745,1718291455693,-450.64751989,0.00024931,3]
[329374747,1718291455712,-500.0,0.00024931,3]
[329374748,1718291455725,-527.29,0.00024931,3]
[329374750,1718291455741,-500.0,0.00024931,3]
[329374751,1718291455762,-382.51926484,0.00024931,3]
[329374753,1718291455774,-591.97,0.00024931,3]
[329374754,1718291455790,-813.26,0.00024931,3]
[329374756,1718291455803,-696.09,0.00024931,3]
[329374758,1718291455827,-259.76068525,0.00024931,3]
[329374760,1718291455849,-500.0,0.00024931,3]
[329374761,1718291455876,-525.86366893,0.00024931,3]
[329374764,1718291455892,-454.93897441,0.00024931,3]
[329374766,1718291455908,-500.0,0.00024931,3]
[329374768,1718291455922,-500.0,0.00024931,3]
[329374769,1718291455933,-495.25454988,0.00024931,3]
[329374771,1718291455957,-500.0,0.00024931,3]
[329374772,1718291455970,-480.74616673,0.00024931,3]
[329374773,1718291455980,-614.84,0.00024931,3]
[329374774,1718291455991,-500.0,0.00024931,3]
[329374775,1718291456006,-1063.91,0.00024931,3]
[329374776,1718291456020,-500.0,0.00024931,3]
[329374777,1718291456032,-500.0,0.00024931,3]
[329374778,1718291456043,-500.0,0.00024931,3]
[329374779,1718291456055,-275.15371212,0.00024931,3]
[329374780,1718291456066,-340.96453286,0.00024931,3]
[329374781,1718291456081,-710.66,0.00024931,3]
[329374782,1718291456116,-500.0,0.00024931,3]
[329374783,1718291456138,-767.83,0.00024931,3]
[329374784,1718291456156,-969.39,0.00024931,3]
[329374785,1718291456191,-570.51,0.00024931,3]
[329374786,1718291456204,-500.0,0.00024931,3]
[329374787,1718291456216,-624.29,0.00024931,3]
[329374788,1718291456232,-500.0,0.00024931,3]
[329374789,1718291456246,-567.52102208,0.00024931,3]
[329374790,1718291456259,-1223.79,0.00024931,3]
[329374791,1718291456270,-500.0,0.00024931,3]
[329374792,1718291456292,-1170.66,0.00024931,3]
[329374793,1718291456309,-500.0,0.00024931,3]
[329374794,1718291456334,-500.0,0.00024931,3]
[329374795,1718291456364,-500.0,0.00024931,3]
[329374796,1718291456376,-500.0,0.00024931,3]
[329374797,1718291456388,-168.86651224,0.00025,2]
[329374798,1718291456421,-14259.5250105,0.00025,2]
[329374799,1718291456441,-23996.07053506,0.00025,2]
[329374800,1718291456457,-573.8301347,0.00025085,2]
[329374801,1718291456496,-201.28,0.000252,2]
[329374802,1718291456515,-590.67,0.00025205,3]
[329374803,1718291456527,-478.69,0.00025205,3]
[329374804,1718291456552,-500.0,0.00025205,3]
[329374805,1718291456572,-500.25,0.00025205,3]
[329374806,1718291456609,-500.0,0.00025205,3]
[329374807,1718291456622,-500.0,0.00025205,3]
[329374808,1718291456637,-1176.01,0.00025205,3]
[329374809,1718291456648,-500.0,0.00025205,3]
[329374810,1718291456658,-500.0,0.00025205,3]
[329374811,1718291456672,-500.0,0.00025205,3]
[329374812,1718291456684,-500.0,0.00025205,3]
[329374813,1718291456700,-799.67,0.00025205,3]
[329374814,1718291456712,-622.80726565,0.00025205,3]
[329374815,1718291456723,-500.0,0.00025205,3]
[329374816,1718291456734,-354.92167418,0.00025205,3]
[329374817,1718291456750,-500.0,0.00025205,3]
[329374818,1718291456781,-580.78524047,0.00025205,3]
[329374819,1718291456793,-500.0,0.00025205,3]
[329374820,1718291456807,-500.0,0.00025205,3]
[329374821,1718291456820,-527.29,0.00025205,3]
[329374822,1718291456830,-500.0,0.00025205,3]
[329374823,1718291456842,-591.97,0.00025205,3]
[329374824,1718291456854,-813.26,0.00025205,3]
[329374825,1718291456876,-696.09,0.00025205,3]
[329374826,1718291456918,-500.0,0.00025205,3]
[329374827,1718291456931,-441.55847979,0.00025205,3]
[329374828,1718291456958,-58.44152021,0.00025205,3]
[329374829,1718291456973,-500.0,0.00025205,3]
[329374830,1718291456983,-591.66230947,0.00025205,3]
[329374831,1718291456994,-1063.91,0.00025205,3]
[329374832,1718291457023,-500.0,0.00025205,3]
[329374833,1718291457041,-586.05123866,0.00025205,3]
[329374834,1718291457057,-500.0,0.00025205,3]
[329374835,1718291457069,-710.66,0.00025205,3]
[329374836,1718291457079,-500.0,0.00025205,3]
[329374837,1718291457094,-767.83,0.00025205,3]
[329374838,1718291457105,-969.39,0.00025205,3]
[329374839,1718291457137,-570.51,0.00025205,3]
[329374840,1718291457173,-647.84042385,0.00025205,3]
[329374841,1718291457208,-624.29,0.00025205,3]
[329374842,1718291457240,-500.0,0.00025205,3]
[329374843,1718291457270,-1223.79,0.00025205,3]
[329374844,1718291457292,-500.0,0.00025205,3]
[329374845,1718291457309,-1170.66,0.00025205,3]
[329374846,1718291457348,-500.0,0.00025205,3]
[329374847,1718291457391,-500.0,0.00025205,3]
[329374848,1718291457409,-500.0,0.00025205,3]
[329374849,1718291457439,-500.0,0.00025205,3]
[329374850,1718291457463,-314.37,0.00025459,2]
[329374851,1718291457481,-500.0,0.00025479,3]
[329374852,1718291457492,-500.0,0.00025479,3]
[329374853,1718291457535,-500.0,0.00025479,3]
[329374854,1718291457588,-1176.01,0.00025479,3]
[329374855,1718291457606,-500.0,0.00025479,3]
[329374856,1718291457620,-500.0,0.00025479,3]
[329374857,1718291457638,-500.0,0.00025479,3]
[329374858,1718291457663,-500.0,0.00025479,3]
[329374859,1718291457693,-799.67,0.00025479,3]
[329374860,1718291457716,-500.0,0.00025479,3]
[329374861,1718291457726,-273.88674396,0.00025479,3]
[329374862,1718291457737,-500.0,0.00025479,3]
[329374863,1718291457753,-500.0,0.00025479,3]
[329374864,1718291457770,-527.29,0.00025479,3]
[329374865,1718291457797,-500.0,0.00025479,3]
[329374866,1718291457829,-591.97,0.00025479,3]
[329374867,1718291457851,-813.26,0.00025479,3]
[329374868,1718291457872,-696.09,0.00025479,3]
[329374869,1718291457885,-500.0,0.00025479,3]
[329374870,1718291457909,-500.0,0.00025479,3]
[329374871,1718291457926,-500.0,0.00025479,3]
[329374872,1718291457941,-500.0,0.00025479,3]
[329374873,1718291457954,-256.03616959,0.00025479,3]
[329374874,1718291457967,-1063.91,0.00025479,3]
[329374875,1718291458004,-710.66,0.00025479,3]
[329374876,1718291458025,-291.85686068,0.00025479,3]
[329374877,1718291458056,-767.83,0.00025479,3]
[329374878,1718291458083,-969.39,0.00025479,3]
[329374879,1718291458095,-570.51,0.00025479,3]
[329374880,1718291458120,-624.29,0.00025479,3]
[329374881,1718291458144,-601.58095817,0.00025479,3]
[329374882,1718291458195,-1223.79,0.00025479,3]
[329374883,1718291458209,-1170.66,0.00025479,3]
[329374884,1718291458224,-71.90377541,0.00025479,3]
[329374885,1718291458364,-428.09622459,0.00025479,3]
[329374886,1718291458377,-261.7667224,0.00025479,3]
[329374887,1718291458428,-238.2332776,0.00025479,3]
[329374888,1718291458464,-500.0,0.00025479,3]
[329374889,1718291458500,-500.0,0.00025479,3]
[329374890,1718291458512,-4829.37,0.00025489,2]
[329374891,1718291458540,-500.0,0.00025753,3]
[329374892,1718291458564,-500.0,0.00025753,3]
[329374893,1718291458586,-500.0,0.00025753,3]
[329374894,1718291458614,-1176.01,0.00025753,3]
[329374895,1718291458636,-500.0,0.00025753,3]
[329374896,1718291458647,-500.0,0.00025753,3]
[329374897,1718291458700,-500.0,0.00025753,3]
[329374898,1718291458711,-500.0,0.00025753,3]
[329374899,1718291458726,-799.67,0.00025753,3]
[329374900,1718291458753,-500.0,0.00025753,3]
[329374901,1718291458784,-500.0,0.00025753,3]
[329374902,1718291458795,-500.0,0.00025753,3]
[329374903,1718291458824,-527.29,0.00025753,3]
[329374904,1718291458835,-500.0,0.00025753,3]
[329374905,1718291458864,-591.97,0.00025753,3]
[329374906,1718291458895,-813.26,0.00025753,3]
[329374907,1718291458906,-696.09,0.00025753,3]
[329374908,1718291458917,-500.0,0.00025753,3]
[329374909,1718291458928,-500.0,0.00025753,3]
[329374910,1718291458942,-258.76403809,0.00025753,3]
[329374911,1718291458960,-241.23596191,0.00025753,3]
[329374912,1718291458992,-496.439111,0.00025753,3]
[329374913,1718291459004,-1063.91,0.00025753,3]
[329374914,1718291459027,-710.66,0.00025753,3]
[329374915,1718291459062,-767.83,0.00025753,3]
[329374916,1718291459091,-969.39,0.00025753,3]
[329374917,1718291459134,-570.51,0.00025753,3]
[329374918,1718291459148,-624.29,0.00025753,3]
[329374919,1718291459159,-1223.79,0.00025753,3]
[329374920,1718291459170,-1170.66,0.00025753,3]
[329374921,1718291459192,-500.0,0.00025753,3]
[329374922,1718291459207,-413.15663266,0.00025753,3]
[329374923,1718291459220,-500.0,0.00025753,3]
[329374924,1718291459242,-500.0,0.00025753,3]
[329374925,1718291459308,-169.26,0.00025839,2]
[329374926,1718291459340,-573.8301347,0.00025888,2]
[329374927,1718291459367,-3000.0,0.00026,2]
[329374928,1718291459379,-3500.0,0.00026,2]
[329374929,1718291459390,-500.0,0.00026026,2]
[329374930,1718291459401,-622.39836747,0.00026026,2]
[329374931,1718291459435,-500.0,0.00026026,2]
[329374932,1718291459479,-500.0,0.00026026,2]
[329374933,1718291459502,-500.0,0.00026026,2]
[329374934,1718291459512,-500.0,0.00026027,3]
[329374935,1718291459540,-368.57,0.00026027,3]
[329374936,1718291459554,-500.0,0.00026027,3]
[329374937,1718291459571,-1176.01,0.00026027,3]
[329374938,1718291459585,-500.0,0.00026027,3]
[329374939,1718291459604,-561.14,0.00026027,3]
[329374940,1718291459617,-500.0,0.00026027,3]
[329374941,1718291459627,-155.43573742,0.00026027,3]
[329374942,1718291459665,-799.67,0.00026027,3]
[329374943,1718291459676,-500.0,0.00026027,3]
[329374944,1718291459696,-500.0,0.00026027,3]
[329374945,1718291459721,-362.9964581,0.00026027,3]
[329374946,1718291459738,-527.29,0.00026027,3]
[329374947,1718291459772,-500.0,0.00026027,3]
[329374948,1718291459790,-591.97,0.00026027,3]
[329374949,1718291459824,-813.26,0.00026027,3]
[329374950,1718291459853,-696.09,0.00026027,3]
[329374951,1718291459874,-500.0,0.00026027,3]
[329374952,1718291459893,-500.0,0.00026027,2]
[329374953,1718291459909,-500.0,0.00026027,2]
[329374954,1718291459932,-500.0,0.00026027,2]
[329374955,1718291459949,-500.0,0.00026027,3]
[329374956,1718291459966,-500.0,0.00026027,3]
[329374957,1718291459980,-500.0,0.00026027,3]
[329374958,1718291460024,-500.0,0.00026027,3]
[329374959,1718291460069,-500.0,0.00026027,3]
[329374960,1718291460086,-500.0,0.00026027,3]
[329374961,1718291460132,-500.0,0.00026027,3]
[329374962,1718291460149,-1063.91,0.00026027,3]
[329374963,1718291460176,-710.66,0.00026027,3]
[329374964,1718291460207,-767.83,0.00026027,3]
[329374965,1718291460232,-969.39,0.00026027,3]
[329374966,1718291460270,-570.51,0.00026027,3]
[329374967,1718291460322,-624.29,0.00026027,3]
[329374968,1718291460337,-1223.79,0.00026027,3]
[329374969,1718291460359,-1170.66,0.00026027,3]
[329374970,1718291460370,-500.0,0.00026027,3]
[329374971,1718291460406,-500.0,0.00026027,3]
[329374972,1718291460442,-767.95,0.00026061,2]
[329374973,1718291460472,-172.31723391,0.00026291,2]
[329374974,1718291460548,-500.0,0.00026301,3]
[329374975,1718291460577,-1176.01,0.00026301,3]
[329374976,1718291460589,-500.0,0.00026301,3]
[329374977,1718291460601,-500.0,0.00026301,3]
[329374978,1718291460613,-799.67,0.00026301,3]
[329374979,1718291460625,-500.0,0.00026301,3]
[329374980,1718291460645,-399.62745459,0.00026301,3]
[329374981,1718291460701,-527.29,0.00026301,3]
[329374982,1718291460716,-500.0,0.00026301,3]
[329374983,1718291460728,-591.97,0.00026301,3]
[329374984,1718291460776,-813.26,0.00026301,3]
[329374985,1718291460798,-696.09,0.00026301,3]
[329374986,1718291460833,-500.0,0.00026301,3]
[329374987,1718291460864,-500.0,0.00026301,3]
[329374988,1718291460891,-500.0,0.00026301,3]
[329374989,1718291460925,-404.06774968,0.00026301,3]
[329374990,1718291461020,-1063.91,0.00026301,3]
[329374991,1718291461075,-710.66,0.00026301,3]
[329374992,1718291461104,-767.83,0.00026301,3]
[329374993,1718291461118,-969.39,0.00026301,3]
[329374994,1718291461137,-570.51,0.00026301,3]
[329374995,1718291461160,-624.29,0.00026301,3]
[329374996,1718291461175,-1223.79,0.00026301,3]
[329374997,1718291461229,-1170.66,0.00026301,3]
[329374998,1718291461241,-500.0,0.00026301,3]
[329374999,1718291461270,-328.5825,0.00026301,3]
[329375000,1718291461329,-248.01581,0.00026301,2]
[329375001,1718291461359,-570.44539466,0.00026322,2]
[329375002,1718291461371,-1088.0,0.00026347,2]
[329375003,1718291461404,-500.0,0.00026575,3]
[329375004,1718291461432,-1176.01,0.00026575,3]
[329375005,1718291461451,-543.94537251,0.00026575,3]
[329375006,1718291461465,-500.0,0.00026575,3]
[329375007,1718291461475,-799.67,0.00026575,3]
[329375008,1718291461502,-500.0,0.00026575,3]
[329375009,1718291461518,-527.29,0.00026575,3]
[329375010,1718291461531,-500.0,0.00026575,3]
[329375011,1718291461573,-591.97,0.00026575,3]
[329375012,1718291461589,-813.26,0.00026575,3]
[329375013,1718291461642,-696.09,0.00026575,3]
[329375014,1718291461658,-152.91048445,0.00026575,3]
[329375015,1718291461684,-500.0,0.00026575,3]
[329375016,1718291461704,-500.0,0.00026575,3]
[329375017,1718291461725,-1063.91,0.00026575,3]
[329375018,1718291461754,-710.66,0.00026575,3]
[329375019,1718291461781,-767.83,0.00026575,3]
[329375020,1718291461824,-969.39,0.00026575,3]
[329375021,1718291461855,-570.51,0.00026575,3]
[329375022,1718291461880,-624.29,0.00026575,3]
[329375023,1718291461899,-1223.79,0.00026575,3]
[329375024,1718291461915,-1170.66,0.00026575,3]
[329375025,1718291461934,-500.0,0.00026575,3]
[329375026,1718291461950,-800.0,0.00026606,2]
[329375027,1718291462000,-573.8301347,0.0002669,2]
[329375028,1718291462013,-455.10281644,0.00026698,2]
[329375029,1718291462031,-500.0,0.00026849,3]
[329375030,1718291462046,-1176.01,0.00026849,3]
[329375031,1718291462059,-500.0,0.00026849,3]
[329375032,1718291462071,-799.67,0.00026849,3]
[329375033,1718291462088,-500.0,0.00026849,3]
[329375034,1718291462103,-527.29,0.00026849,3]
[329375035,1718291462141,-500.0,0.00026849,3]
[329375036,1718291462165,-591.97,0.00026849,3]
[329375037,1718291462181,-813.26,0.00026849,3]
[329375038,1718291462248,-696.09,0.00026849,3]
[329375039,1718291462269,-500.0,0.00026849,3]
[329375040,1718291462311,-500.0,0.00026849,3]
[329375041,1718291462324,-1063.91,0.00026849,3]
[329375042,1718291462380,-710.66,0.00026849,3]
[329375043,1718291462394,-767.83,0.00026849,3]
[329375044,1718291462448,-969.39,0.00026849,3]
[329375045,1718291462459,-570.51,0.00026849,3]
[329375046,1718291462470,-624.29,0.00026849,3]
[329375047,1718291462481,-1223.79,0.00026849,3]
[329375048,1718291462496,-1170.66,0.00026849,3]
[329375049,1718291462508,-500.0,0.00026849,3]
[329375050,1718291462538,-1067.48531117,0.00026849,2]
[329375051,1718291462557,-266.6826444,0.00026998,2]
[329375052,1718291462575,-157.09089731,0.00026998,2]
[329375053,1718291462624,-500.0,0.00027123,3]
[329375054,1718291462636,-1176.01,0.00027123,3]
[329375055,1718291462657,-500.0,0.00027123,3]
[329375056,1718291462679,-799.67,0.00027123,3]
[329375057,1718291462716,-500.0,0.00027123,3]
[329375058,1718291462727,-527.29,0.00027123,3]
[329375059,1718291462741,-500.0,0.00027123,3]
[329375060,1718291462754,-591.97,0.00027123,3]
[329375061,1718291462801,-813.26,0.00027123,3]
[329375062,1718291462820,-696.09,0.00027123,3]
[329375063,1718291462835,-500.0,0.00027123,3]
[329375064,1718291462847,-500.0,0.00027123,3]
[329375065,1718291462872,-1063.91,0.00027123,3]
[329375066,1718291462925,-710.66,0.00027123,3]
[329375067,1718291462968,-767.83,0.00027123,3]
[329375068,1718291463002,-969.39,0.00027123,3]
[329375069,1718291463041,-570.51,0.00027123,3]
[329375070,1718291463068,-624.29,0.00027123,3]
[329375071,1718291463109,-1223.79,0.00027123,3]
[329375072,1718291463135,-1170.66,0.00027123,3]
[329375073,1718291463202,-500.0,0.00027123,3]
[329375074,1718291463236,-248.01581,0.00027123,2]
[329375075,1718291463260,-500.0,0.00027397,3]
[329375076,1718291463289,-1176.01,0.00027397,3]
[329375077,1718291463314,-491.10117608,0.00027397,3]
[329375078,1718291463366,-799.67,0.00027397,3]
[329375079,1718291463483,-500.0,0.00027397,3]